bitfinex-derivatives/quotes_BTCF0:USTF0_20240902
["timestamp","ask_amount","ask_price","bid_price","bid_amount"]
[1725250063784,0.060612,57747.0,57746.0,0.05205428]
[1725250064089,0.25907958,57747.0,57746.0,0.05205428]
[1725250064691,0.25907958,57747.0,57746.0,0.0004]
[1725250065083,0.25907958,57747.0,57746.0,0.05205428]
[1725250065590,0.25907958,57747.0,57746.0,0.0004]
[1725250065785,0.25907958,57747.0,57746.0,0.05204312]
[1725250066188,0.26607958,57747.0,57746.0,0.05304312]
[1725250066583,0.26607958,57747.0,57746.0,0.0014]
[1725250067889,0.20546758,57747.0,57746.0,0.062013]
[1725250068095,0.19846758,57747.0,57746.0,0.061013]
[1725250068291,0.20346758,57747.0,57746.0,0.061013]
[1725250068487,0.005,57747.0,57746.0,0.061013]
[1725250068684,0.19615758,57747.0,57746.0,0.221013]
[1725250069102,0.00025967,57750.0,57749.0,0.06061]
[1725250069293,0.00025967,57750.0,57749.0,0.06101]
[1725250072196,0.1462,57765.0,57749.0,1.6126126]
[1725250072401,0.1462,57765.0,57764.0,0.0004]
[1725250072697,0.32930043,57765.0,57764.0,0.0004]
[1725250073095,1.44866043,57765.0,57764.0,0.0004]
[1725250073285,1.56984643,57765.0,57764.0,0.0004]
[1725250074583,0.060598,57760.0,57759.0,0.00025967]
[1725250074784,1.181798,57760.0,57759.0,0.00025967]
[1725250074985,0.060606,57752.0,57751.0,0.05162973]
[1725250075190,0.061006,57752.0,57751.0,0.05162973]
[1725250075402,0.060608,57751.0,57750.0,0.05162973]
[1725250075603,0.061008,57751.0,57750.0,0.05162973]
[1725250075903,0.2407365,57751.0,57750.0,0.05162973]
[1725250076292,0.2407365,57751.0,57745.0,0.00025967]
[1725250076505,0.0004,57746.0,57745.0,0.00025967]
[1725250076799,0.066608,57751.0,57750.0,0.0006]
[1725250077303,0.26246902,57751.0,57750.0,0.0006]
[1725250078201,0.25546902,57751.0,57745.0,0.00025967]
[1725250078400,0.060609,57750.0,57745.0,0.00025967]
[1725250078602,0.060611,57748.0,57745.0,0.00025967]
[1725250078998,0.18442407,57747.0,57745.0,0.00025967]
[1725250079197,0.18342407,57747.0,57745.0,0.00025967]
[1725250080803,0.060613,57746.0,57745.0,0.00025967]
[1725250080993,0.580133,57746.0,57745.0,0.00025967]
[1725250081299,0.26125813,57746.0,57745.0,0.00025967]
[1725250081507,0.78077813,57746.0,57745.0,0.00025967]
[1725250082194,1.00639113,57746.0,57745.0,0.00025967]
[1725250082492,1.60639113,57746.0,57745.0,0.0520297]
[1725250082890,1.60739113,57746.0,57745.0,0.0530297]
[1725250083091,1.60739113,57746.0,57745.0,0.00125967]
[1725250083297,1.6764265,57746.0,57745.0,0.00125967]
[1725250084890,1.6764265,57746.0,57735.0,0.16]
[1725250084891,0.060626,57733.0,57730.0,0.08604955]
[1725250085093,0.882,57731.0,57722.0,0.08604955]
[1725250085301,0.0004,57723.0,57721.0,0.08604955]
[1725250085492,0.2552439,57730.0,57722.0,0.16]
[1725250085692,0.06063,57730.0,57729.0,0.0004]
[1725250086108,0.2552439,57730.0,57729.0,0.0004]
[1725250086304,0.2452439,57730.0,57729.0,0.0004]
[1725250086605,0.2452439,57730.0,57729.0,0.05209629]
[1725250087003,0.2006139,57730.0,57729.0,0.0014]
[1725250087196,0.006,57730.0,57729.0,0.0014]
[1725250088306,0.006,57730.0,57729.0,0.1467]
[1725250089307,0.006,57730.0,57729.0,0.1457]
[1725250090606,0.5006,57742.0,57729.0,0.1457]
[1725250090607,0.42992559,57763.0,57730.0,0.51964]
[1725250090806,0.421395,57763.0,57762.0,0.0004]
[1725250091013,0.61257139,57763.0,57762.0,0.0004]
[1725250091311,0.421395,57763.0,57762.0,0.0004]
[1725250091615,0.60362406,57763.0,57762.0,0.0004]
[1725250092406,0.24282406,57763.0,57762.0,0.0004]
[1725250092610,0.25682406,57763.0,57762.0,0.0004]
[1725250093000,0.19622906,57763.0,57762.0,0.0004]
[1725250093305,0.18222906,57763.0,57762.0,0.0004]
[1725250093608,0.19622906,57763.0,57762.0,0.0004]
[1725250095003,0.19622906,57763.0,57762.0,0.0014]
[1725250108406,0.25682406,57763.0,57762.0,0.0014]
[1725250109006,1.37618406,57763.0,57762.0,0.0014]
[1725250109207,1.37618406,57763.0,57757.0,0.00025967]
[1725250109208,0.0606,57758.0,57757.0,0.00025967]
[1725250109414,0.5818,57758.0,57757.0,0.00025967]
[1725250109614,1.88934353,57758.0,57757.0,1e-08]
[1725250110111,2.05994353,57758.0,57757.0,1e-08]
[1725250111118,0.060619,57741.0,57739.0,0.3608]
[1725250111305,0.0004,57740.0,57739.0,0.3608]
[1725250111502,0.0004,57740.0,57739.0,0.58142]
[1725250112108,0.0004,57740.0,57739.0,1.70098]
[1725250112811,0.0004,57740.0,57739.0,1.75258461]
[1725250113004,0.0004,57740.0,57739.0,2.11338461]
[1725250113409,0.0004,57740.0,57739.0,2.11438461]
[1725250114312,0.0004,57740.0,57739.0,2.11338461]
[1725250114511,0.0004,57740.0,57739.0,2.11438461]
[1725250114708,0.0004,57740.0,57739.0,2.06278]
[1725250115812,0.0004,57740.0,57739.0,0.58242]
[1725250116311,0.18665447,57740.0,57739.0,0.58242]
[1725250117421,0.564893,57765.0,57741.0,0.060617]
[1725250117609,0.204093,57765.0,57764.0,0.1604]
[1725250118116,0.38736498,57765.0,57764.0,0.1604]
[1725250119516,0.38736498,57765.0,57764.0,0.21204404]
[1725250119721,0.38836498,57765.0,57764.0,0.21204404]
[1725250120417,0.18327198,57765.0,57764.0,0.21204404]
[1725250120612,0.19727198,57765.0,57764.0,0.1604]
[1725250120813,0.19727198,57765.0,57764.0,0.22925872]
[1725250120814,0.014,57765.0,57764.0,0.22925872]
[1725250121014,0.20627104,57765.0,57764.0,0.22925872]
[1725250121219,0.20627104,57765.0,57764.0,0.1604]
[1725250121520,0.060598,57760.0,57759.0,0.00025967]
[1725250121714,0.060601,57757.0,57756.0,0.05172295]
[1725250121917,0.060603,57755.0,57751.0,9.5e-07]
[1725250122217,0.5208,57752.0,57746.0,0.06894959]
[1725250122425,0.3612,57747.0,57746.0,0.06894959]
[1725250122622,0.421812,57747.0,57745.0,0.06894959]
[1725250122822,0.0004,57746.0,57745.0,0.06894959]
[1725250123117,0.19997064,57746.0,57745.0,0.06894959]
[1725250124628,0.19997064,57746.0,57744.0,0.06894959]
[1725250124928,0.0004,57745.0,57744.0,0.06894959]
[1725250125226,0.19364806,57745.0,57744.0,0.06894959]
[1725250126319,0.19364806,57745.0,57743.0,0.06894959]
[1725250126320,0.060615,57744.0,57743.0,0.06894959]
[1725250126523,0.060615,57744.0,57740.0,0.06920926]
[1725250126524,0.060616,57743.0,57740.0,0.06920926]
[1725250126724,0.0004,57741.0,57740.0,0.06920926]
[1725250126925,0.0004,57741.0,57740.0,0.00025967]
[1725250127230,0.18858105,57741.0,57740.0,0.06920926]
[1725250127425,0.18858105,57741.0,57740.0,0.00025967]
[1725250128622,0.18858105,57741.0,57740.0,0.06087867]
[1725250130630,0.14525806,57741.0,57740.0,0.06087867]
[1725250131131,0.3612,57744.0,57743.0,0.060616]
[1725250131434,0.5470522,57744.0,57743.0,0.28993442]
[1725250131622,0.5466522,57744.0,57743.0,0.28993442]
[1725250132336,0.1858522,57744.0,57743.0,0.28993442]
[1725250132626,0.003,57744.0,57743.0,0.28993442]
[1725250132819,0.003,57744.0,57743.0,1.101336]
[1725250133023,0.003,57744.0,57743.0,1.31935802]
[1725250133335,0.003,57744.0,57743.0,1.23328461]
[1725250134732,0.003,57744.0,57743.0,1.23701412]
[1725250136023,0.003,57744.0,57743.0,1.23700885]
[1725250136337,0.3608,57756.0,57751.0,0.060608]
[1725250136537,0.3608,57756.0,57751.0,0.12993489]
[1725250136729,0.18201025,57752.0,57751.0,0.12993489]
[1725250136936,0.18201025,57752.0,57751.0,0.061008]
[1725250137630,0.00025967,57752.0,57751.0,0.061008]
[1725250138639,0.01225967,57752.0,57751.0,0.062008]
[1725250139537,0.01225967,57752.0,57751.0,1.26764662]
[1725250139737,0.01225967,57752.0,57751.0,1.31342162]
[1725250140438,0.060593,57765.0,57757.0,0.060601]
[1725250140637,0.060593,57765.0,57764.0,0.0004]
[1725250141030,0.2466079,57765.0,57764.0,0.0004]
[1725250141943,0.2566079,57765.0,57764.0,0.0004]
[1725250142644,0.2466079,57765.0,57764.0,0.0004]
[1725250142941,0.2566079,57765.0,57764.0,0.0014]
[1725250143242,1.5965609,57765.0,57764.0,0.0014]
[1725250143447,0.060598,57760.0,57759.0,1e-08]
[1725250143633,0.602396,57760.0,57759.0,1e-08]
[1725250143942,1.30806278,57760.0,57759.0,1e-08]
[1725250144556,1.90806278,57760.0,57759.0,1e-08]
[1725250144753,1.30806278,57760.0,57759.0,1e-08]
[1725250144952,1.90806278,57760.0,57759.0,1e-08]
[1725250145148,1.92267786,57760.0,57759.0,0.00100001]
[1725250145560,2.28347786,57760.0,57759.0,0.00100001]
[1725250145759,0.060609,57750.0,57749.0,0.06893046]
[1725250145955,0.060613,57746.0,57745.0,0.06896586]
[1725250146255,0.060615,57744.0,57743.0,0.06896586]
[1725250146454,0.061015,57744.0,57742.0,0.06896586]
[1725250146655,0.0004,57743.0,57742.0,0.06896586]
[1725250147156,0.1874128,57743.0,57742.0,0.06896586]
[1725250147358,0.2480298,57743.0,57741.0,0.06896586]
[1725250147657,0.0004,57742.0,57741.0,0.06896586]
[1725250148055,0.19714471,57742.0,57741.0,0.06896586]
[1725250148561,0.060621,57738.0,57737.0,0.00025967]
[1725250148948,0.25368743,57738.0,57737.0,0.00025967]
[1725250149657,0.25368743,57738.0,57737.0,0.00425967]
[1725250150259,0.25368743,57738.0,57737.0,0.07326397]
[1725250150450,0.19306643,57738.0,57737.0,0.25042274]
[1725250150649,0.00025967,57748.0,57737.0,0.13622731]
[1725250150850,0.06087067,57748.0,57747.0,0.06937463]
[1725250151066,0.06087067,57748.0,57747.0,0.0004]
[1725250151354,0.26052353,57748.0,57747.0,0.0004]
[1725250152560,0.27052353,57748.0,57747.0,0.0014]
[1725250158063,0.26052353,57748.0,57747.0,0.0004]
[1725250158257,0.26952353,57748.0,57747.0,0.0014]
[1725250159066,0.27052353,57748.0,57747.0,0.0014]
[1725250163366,0.20991253,57748.0,57747.0,0.0014]
[1725250163563,0.20991253,57748.0,57747.0,0.19396505]
[1725250168574,0.20091253,57748.0,57747.0,0.19896505]
[1725250168870,0.20091253,57748.0,57747.0,0.28522179]
[1725250169176,0.20091253,57748.0,57747.0,0.15326874]
[1725250170366,0.19991253,57748.0,57747.0,0.15126874]
[1725250170571,0.19991253,57748.0,57747.0,0.28321378]
[1725250170772,0.19991253,57748.0,57747.0,0.15126874]
[1725250170975,0.19991253,57748.0,57747.0,0.061012]
[1725250171173,0.20391253,57748.0,57747.0,0.061012]
[1725250171569,0.20391253,57748.0,57747.0,0.14726874]
[1725250171778,0.19991253,57748.0,57747.0,0.14726874]
[1725250172069,0.20591253,57748.0,57747.0,0.14726874]
[1725250172265,0.20591253,57748.0,57747.0,0.27921736]
[1725250173374,0.20591253,57748.0,57747.0,0.27921996]
[1725250173570,0.19991253,57748.0,57747.0,0.27921996]
[1725250173774,0.20591253,57748.0,57747.0,0.19296322]
[1725250174366,0.19991253,57748.0,57747.0,0.19296322]
[1725250174565,0.20491253,57748.0,57747.0,0.19296322]
[1725250175180,0.19991253,57748.0,57747.0,0.19296322]
[1725250175372,0.15759353,57748.0,57747.0,0.55376322]
[1725250176976,0.15959353,57748.0,57747.0,0.55376322]
[1725250177168,0.15959353,57748.0,57747.0,0.55375628]
[1725250177778,0.15659353,57748.0,57747.0,0.55375628]
[1725250178672,0.15959353,57748.0,57747.0,0.55375628]
[1725250180073,0.15659353,57748.0,57747.0,0.19295628]
[1725250180274,0.15859353,57748.0,57747.0,0.55375628]
[1725250180872,0.15659353,57748.0,57747.0,0.55375628]
[1725250181072,0.15859353,57748.0,57747.0,0.55375628]
[1725250181275,0.15859353,57748.0,57747.0,0.65704437]
[1725250181583,0.15859353,57748.0,57747.0,0.55375628]
[1725250181891,0.16259353,57748.0,57747.0,0.55375628]
[1725250183576,0.16159353,57748.0,57747.0,0.55375628]
[1725250184279,0.15659353,57748.0,57747.0,0.421812]
[1725250184584,0.16159353,57748.0,57747.0,0.55374845]
[1725250185088,0.16159353,57748.0,57747.0,0.65734718]
[1725250185277,0.16159353,57748.0,57747.0,0.55374845]
[1725250186277,0.16159353,57748.0,57747.0,0.65735305]
[1725250186589,0.16159353,57748.0,57747.0,0.55374845]
[1725250186884,0.16159353,57748.0,57747.0,0.55374827]
[1725250188082,0.422269,57769.0,57752.0,0.060606]
[1725250188379,0.133,57767.0,57765.0,0.0004]
[1725250188582,0.133,57767.0,57766.0,0.06945049]
[1725250188888,0.3895109,57767.0,57766.0,0.0004]
[1725250189387,0.3895109,57767.0,57766.0,0.06944294]
[1725250189586,0.3895109,57767.0,57766.0,0.0004]
[1725250189890,0.3895109,57767.0,57766.0,0.06944862]
[1725250190188,0.3895109,57767.0,57766.0,0.06944658]
[1725250190783,0.3955109,57767.0,57766.0,0.07044629]
[1725250190973,0.3955109,57767.0,57766.0,0.07044431]
[1725250191377,0.3955109,57767.0,57766.0,0.0014]
[1725250191581,0.3349199,57767.0,57766.0,0.0014]
[1725250195292,0.2019199,57767.0,57766.0,0.061992]
[1725250195684,0.2019199,57767.0,57766.0,0.28022114]
[1725250195990,0.006,57767.0,57766.0,1.4737397]
[1725250196285,0.006,57767.0,57766.0,1.5824125]
[1725250196491,0.006,57767.0,57766.0,0.98239057]
[1725250196682,0.006,57767.0,57766.0,0.35387057]
[1725250196879,0.0032,57768.0,57766.0,0.35287057]
[1725250197183,0.0032,57768.0,57767.0,0.0004]
[1725250197584,0.18470558,57768.0,57767.0,0.0004]
[1725250197986,0.19070558,57768.0,57767.0,0.0004]
[1725250198784,0.0092,57768.0,57767.0,0.0004]
[1725250199193,0.0092,57768.0,57767.0,0.06921873]
[1725250199589,0.0072,57768.0,57767.0,0.07021873]
[1725250199796,0.0072,57768.0,57767.0,0.0014]
[1725250200906,0.19696408,57768.0,57767.0,0.0014]
[1725250201288,0.71628408,57768.0,57767.0,0.0014]
[1725250202199,1.31628408,57768.0,57767.0,0.0014]
[1725250202492,0.71994903,57768.0,57767.0,0.0014]
[1725250203299,1.08074903,57768.0,57767.0,0.0014]
[1725250203498,1.08074903,57768.0,57761.0,0.00025967]
[1725250203499,0.060596,57762.0,57761.0,0.00025967]
[1725250203691,0.581796,57762.0,57761.0,0.00025967]
[1725250203890,0.20048448,57762.0,57761.0,0.00025967]
[1725250204894,0.20548448,57762.0,57761.0,0.00125967]
[1725250206490,0.20548448,57762.0,57761.0,0.00493115]
[1725250207698,0.20548448,57762.0,57761.0,0.00125967]
[1725250208605,0.20548448,57762.0,57761.0,0.07018923]
[1725250209299,0.20548448,57762.0,57761.0,0.07021124]
[1725250210001,0.20548448,57762.0,57761.0,0.00125967]
[1725250210900,0.20548448,57762.0,57761.0,0.07023887]
[1725250211091,0.72484448,57762.0,57761.0,0.07023887]
[1725250211295,0.72484448,57762.0,57761.0,0.00125967]
[1725250211801,0.78544048,57762.0,57761.0,0.00125967]
[1725250211998,1.74624048,57762.0,57761.0,0.00125967]
[1725250212398,1.74624048,57762.0,57758.0,0.0689792]
[1725250212399,0.0606,57758.0,57757.0,0.0689792]
[1725250212603,0.1304,57758.0,57744.0,0.08611454]
[1725250212806,0.1304,57758.0,57746.0,0.06902817]
[1725250212807,0.16,57747.0,57746.0,0.06902817]
[1725250213006,0.060613,57746.0,57745.0,0.06902817]
[1725250213198,0.060613,57746.0,57731.0,0.220628]
[1725250213199,0.060615,57744.0,57743.0,0.06902817]
[1725250213393,0.421815,57744.0,57743.0,0.06902817]
[1725250213603,0.62202409,57744.0,57743.0,0.06902817]
[1725250213907,0.62202409,57744.0,57738.0,0.08637421]
[1725250213908,0.059617,57742.0,57738.0,0.08637421]
[1725250214108,0.059617,57742.0,57739.0,0.08611454]
[1725250214295,0.19392994,57741.0,57738.0,0.08637421]
[1725250214699,0.0004,57739.0,57738.0,0.08637421]
[1725250214899,0.0004,57739.0,57738.0,0.00025967]
[1725250215094,0.18948397,57739.0,57738.0,0.00025967]
[1725250216899,0.18848397,57739.0,57738.0,0.36105967]
[1725250217599,0.18948397,57739.0,57738.0,0.36705967]
[1725250218695,0.16,57755.0,57745.0,0.060613]
[1725250218696,0.00025967,57749.0,57745.0,0.060613]
[1725250219011,0.00025967,57749.0,57748.0,0.0004]
[1725250219305,0.18857542,57749.0,57748.0,0.0004]
[1725250219698,0.18857542,57749.0,57744.0,0.16]
[1725250219699,0.18857542,57749.0,57746.0,0.05229865]
[1725250220108,0.18857542,57749.0,57748.0,0.060611]
[1725250220413,0.14525658,57749.0,57748.0,0.060611]
[1725250220998,0.14525658,57749.0,57748.0,0.220611]
[1725250223407,0.14525658,57749.0,57748.0,0.2243233]
[1725250223606,0.0002589,57754.0,57748.0,0.2243233]
[1725250223607,0.0002589,57754.0,57748.0,0.6831923]
[1725250223808,0.0002589,57754.0,57753.0,0.16]
[1725250224201,0.1938189,57754.0,57753.0,0.16]
[1725250224914,0.1938189,57754.0,57753.0,0.220605]
[1725250226615,0.1938189,57754.0,57753.0,0.221005]
[1725250228108,0.1938189,57754.0,57753.0,0.0004]
[1725250228109,0.2544229,57754.0,57753.0,0.0004]
[1725250228310,1.7952669,57754.0,57753.0,0.0004]
[1725250228510,1.9252669,57754.0,57753.0,0.0004]
[1725250229515,1.13823425,57754.0,57753.0,0.0004]
[1725250230021,1.73823425,57754.0,57753.0,0.0004]
[1725250230222,1.79883825,57754.0,57753.0,0.0004]
[1725250231718,0.06062,57740.0,57738.0,0.00025967]
[1725250231914,0.0004,57739.0,57738.0,0.00025967]
[1725250232119,0.32408486,57739.0,57738.0,0.00025967]
[1725250232718,0.18108486,57739.0,57738.0,0.00025967]
[1725250238622,0.18108486,57739.0,57738.0,0.00396152]
[1725250238815,0.24170486,57739.0,57738.0,0.00025967]
[1725250239016,0.92130486,57739.0,57738.0,0.00025967]
[1725250239413,0.40170486,57739.0,57738.0,0.00025967]
[1725250239618,0.24170486,57739.0,57738.0,0.00025967]
[1725250240028,0.24537578,57739.0,57738.0,0.00025967]
[1725250240718,0.24537578,57739.0,57738.0,0.00033967]
[1725250248834,0.24170486,57739.0,57738.0,0.00033967]
[1725250254339,0.18108486,57739.0,57738.0,0.06096067]
[1725250257242,0.18108486,57739.0,57738.0,0.27915545]
[1725250257832,0.18108486,57739.0,57738.0,0.19293581]
[1725250258333,0.18108486,57739.0,57738.0,0.1929334]
[1725250260549,0.85192486,57739.0,57738.0,0.00033967]
[1725250260854,0.060627,57732.0,57731.0,0.08639847]
[1725250261034,0.06063,57730.0,57728.0,0.08639847]
[1725250261345,0.060642,57718.0,57717.0,0.10866356]
[1725250261537,0.061042,57718.0,57717.0,0.13722158]
[1725250261736,0.25426189,57718.0,57717.0,0.0052]
[1725250263238,0.33601989,57718.0,57717.0,0.0052]
[1725250263441,0.19361989,57718.0,57717.0,0.0052]
[1725250264039,0.19361989,57718.0,57717.0,1.26086]
[1725250264240,0.0004,57718.0,57717.0,1.39286908]
[1725250264442,0.00025967,57723.0,57717.0,1.39286908]
[1725250264644,0.00025967,57723.0,57722.0,0.1604]
[1725250264947,0.00025967,57723.0,57722.0,1.02870908]
[1725250265151,0.00025967,57723.0,57722.0,0.42870908]
[1725250265444,0.3608,57731.0,57723.0,0.060637]
[1725250265649,0.3608,57731.0,57730.0,0.0004]
[1725250266049,0.55578763,57731.0,57730.0,0.0004]
[1725250268450,0.55578763,57731.0,57730.0,0.00404387]
[1725250279764,0.19498763,57731.0,57730.0,0.06467387]
[1725250280153,0.0002589,57736.0,57730.0,0.00404387]
[1725250280154,0.1920851,57735.0,57730.0,0.00404387]
[1725250280360,0.0002589,57736.0,57734.0,0.16]
[1725250280761,0.1920851,57735.0,57734.0,0.16]
[1725250281161,0.1920851,57735.0,57734.0,0.22894731]
[1725250281357,0.0002589,57736.0,57734.0,0.5208]
[1725250281658,0.0002589,57736.0,57735.0,0.21473345]
[1725250282264,0.0002589,57736.0,57735.0,0.1458]
[1725250282465,0.0002589,57736.0,57735.0,0.27533142]
[1725250283572,0.0002589,57736.0,57735.0,0.27573142]
[1725250283870,0.0002589,57736.0,57735.0,0.206824]
[1725250284171,0.0002589,57736.0,57735.0,0.27573142]
[1725250285066,0.0002589,57736.0,57735.0,0.27574289]
[1725250285274,0.0002589,57736.0,57735.0,0.567624]
[1725250287875,0.0002589,57736.0,57735.0,0.69959289]
[1725250292962,0.0002589,57736.0,57735.0,0.49316889]
[1725250293178,0.60749931,57736.0,57735.0,0.0004]
[1725250294670,0.60749931,57736.0,57735.0,0.05215063]
[1725250294863,1.12709931,57736.0,57735.0,0.0004]
[1725250296276,1.13073603,57736.0,57735.0,0.0004]
[1725250299279,0.61113603,57736.0,57735.0,0.0004]
[1725250301167,0.67175903,57736.0,57735.0,0.0004]
[1725250301369,1.79135903,57736.0,57735.0,0.0004]
[1725250307782,1.85198203,57736.0,57735.0,1e-06]
[1725250307986,0.060631,57729.0,57728.0,0.05173779]
[1725250308186,0.37002549,57729.0,57726.0,0.05173779]
[1725250308386,0.5212,57727.0,57726.0,0.05173779]
[1725250308584,0.060634,57726.0,57725.0,0.05199746]
[1725250308880,0.24606891,57726.0,57725.0,0.05199746]
[1725250309080,0.24646891,57726.0,57725.0,0.00025967]
[1725250309278,1.36618891,57726.0,57725.0,0.00025967]
[1725250309784,1.42682291,57726.0,57725.0,0.00025967]
[1725250312582,1.58682291,57726.0,57725.0,0.00025967]
[1725250312778,0.189565,57726.0,57725.0,0.00025967]
[1725250312990,0.18583491,57726.0,57725.0,0.00025967]
[1725250316597,0.18583491,57726.0,57725.0,0.06926052]
[1725250318599,0.18583491,57726.0,57725.0,0.0039804]
[1725250320791,0.14249637,57726.0,57725.0,0.0039804]
[1725250321396,0.20313037,57726.0,57725.0,0.00025967]
[1725250321600,0.94348437,57726.0,57725.0,0.00025967]
[1725250321992,0.94348437,57726.0,57725.0,0.05205224]
[1725250322192,0.42376437,57726.0,57725.0,0.05205224]
[1725250322396,0.42376437,57726.0,57725.0,0.00025967]
[1725250322599,0.94348437,57726.0,57725.0,0.00025967]
[1725250323198,0.42376437,57726.0,57725.0,0.00025967]
[1725250323401,0.94348437,57726.0,57725.0,0.00025967]
[1725250323596,1.68748437,57726.0,57725.0,0.00025967]
[1725250330996,0.36313037,57726.0,57725.0,0.05207058]
[1725250331195,0.36313037,57726.0,57725.0,0.00025967]
[1725250331606,0.20313037,57726.0,57725.0,0.00025967]
[1725250331808,0.20313037,57726.0,57725.0,0.0693085]
[1725250332106,0.20313037,57726.0,57725.0,0.00025967]
[1725250332497,0.20313037,57726.0,57725.0,0.06930365]
[1725250333608,0.20313037,57726.0,57725.0,0.00025967]
[1725250334603,0.20313037,57726.0,57725.0,0.06930653]
[1725250335103,0.20313037,57726.0,57725.0,0.00025967]
[1725250335692,0.56393037,57726.0,57725.0,0.00025967]
[1725250335899,0.56393037,57726.0,57725.0,0.06931466]
[1725250336309,0.56393037,57726.0,57725.0,0.0693171]
[1725250336509,0.56393037,57726.0,57725.0,0.00025967]
[1725250339305,0.56393037,57726.0,57725.0,0.06933881]
[1725250339703,0.56393037,57726.0,57725.0,0.00025967]
[1725250340597,0.56393037,57726.0,57725.0,0.06933881]
[1725250341407,0.50329637,57726.0,57725.0,0.00025967]
[1725250341908,0.50329637,57726.0,57725.0,0.08645783]
[1725250342113,0.50329637,57726.0,57725.0,0.00025967]
[1725250342605,0.50329637,57726.0,57725.0,0.08645783]
[1725250342810,0.50329637,57726.0,57725.0,0.14709283]
[1725250343512,0.50329637,57726.0,57725.0,0.06089467]
[1725250344007,0.50329637,57726.0,57725.0,0.14709283]
[1725250344201,0.50329637,57726.0,57725.0,0.06089467]
[1725250347808,0.50329637,57726.0,57725.0,0.19289717]
[1725250350820,0.47555637,57726.0,57725.0,0.19289717]
[1725250351507,0.47555637,57726.0,57725.0,0.35289717]
[1725250352023,0.47555637,57726.0,57725.0,0.29289717]
[1725250353013,0.47555637,57726.0,57725.0,0.81261717]
[1725250354327,0.47555637,57726.0,57725.0,0.29289717]
[1725250357424,0.11475637,57726.0,57725.0,0.29289717]
[1725250361326,0.05409043,57726.0,57725.0,0.45355359]
[1725250362413,0.05409043,57726.0,57725.0,0.29289717]
[1725250362612,0.05409043,57726.0,57725.0,1.57327191]
[1725250362822,0.0004,57726.0,57725.0,1.93407191]
[1725250364226,0.18467135,57726.0,57725.0,0.71435191]
[1725250364526,0.18467135,57726.0,57725.0,0.65724251]
[1725250364828,0.18467135,57726.0,57725.0,0.55369717]
[1725250365828,0.18467135,57726.0,57725.0,0.55368942]
[1725250365829,0.14133755,57726.0,57725.0,0.55368942]
[1725250366128,0.14133755,57726.0,57725.0,0.65723476]
[1725250366327,0.14133755,57726.0,57725.0,0.55368942]
[1725250366727,0.14133755,57726.0,57725.0,0.65723476]
[1725250366919,0.1392,57735.0,57725.0,1.71631976]
[1725250367121,0.1392,57735.0,57734.0,0.1004]
[1725250367526,0.32405353,57735.0,57734.0,0.1867038]
[1725250367924,0.18485353,57735.0,57734.0,0.2473288]
[1725250368228,0.18485353,57735.0,57734.0,0.29301176]
[1725250370019,0.18485353,57735.0,57734.0,0.19301176]
[1725250371229,0.18485353,57735.0,57734.0,0.1930084]
[1725250371531,0.18485353,57735.0,57734.0,0.061025]
[1725250372734,0.18485353,57735.0,57734.0,0.1930032]
[1725250372934,0.18485353,57735.0,57734.0,0.061025]
[1725250373124,0.18485353,57735.0,57734.0,0.19300313]
[1725250373433,0.18485353,57735.0,57734.0,0.19664296]
[1725250377029,0.18485353,57735.0,57734.0,0.19664542]
[1725250379032,0.24547753,57735.0,57734.0,0.22231959]
[1725250379231,0.24547753,57735.0,57734.0,0.0004]
[1725250379441,0.38697753,57735.0,57734.0,0.0004]
[1725250380732,0.54697753,57735.0,57734.0,0.0004]
[1725250385332,0.55067336,57735.0,57734.0,0.0004]
[1725250387736,0.39067336,57735.0,57734.0,0.0004]
[1725250390545,0.55067336,57735.0,57734.0,0.0004]
[1725250391046,0.55067336,57735.0,57734.0,0.06944398]
[1725250391742,0.55067336,57735.0,57734.0,0.0004]
[1725250391945,0.49067336,57735.0,57734.0,0.0004]
[1725250393549,0.49067336,57735.0,57734.0,0.06944398]
[1725250393749,0.49067336,57735.0,57734.0,0.0004]
[1725250397655,0.49067336,57735.0,57734.0,0.06944149]
[1725250399755,0.49067336,57735.0,57734.0,0.06944862]
[1725250400056,0.49067336,57735.0,57734.0,0.0004]
[1725250400249,0.49067336,57735.0,57734.0,0.06945284]
[1725250400448,0.49067336,57735.0,57734.0,0.06945398]
[1725250400651,0.55129736,57735.0,57734.0,0.06945398]
[1725250401757,0.55129736,57735.0,57734.0,0.0004]
[1725250401957,1.02209736,57735.0,57734.0,0.0004]
[1725250402358,1.02209736,57735.0,57734.0,0.06945849]
[1725250404466,1.54169736,57735.0,57734.0,0.0004]
[1725250404669,1.54169736,57735.0,57725.0,0.00025967]
[1725250404670,0.060626,57733.0,57725.0,0.08655884]
[1725250404962,0.3612,57726.0,57725.0,0.00025967]
[1725250405164,0.3612,57726.0,57725.0,0.06936754]
[1725250405369,1.22066162,57726.0,57725.0,0.00025967]
[1725250405962,1.34192962,57726.0,57725.0,0.00025967]
[1725250407262,0.82220962,57726.0,57725.0,0.00025967]
[1725250407665,0.92220962,57726.0,57725.0,0.00025967]
[1725250410763,0.92578398,57726.0,57725.0,0.00025967]
[1725250411661,0.92578398,57726.0,57725.0,0.0519986]
[1725250412472,0.92578398,57726.0,57725.0,0.00025967]
[1725250423179,1.44550398,57726.0,57725.0,0.00025967]
[1725250423387,1.44550398,57726.0,57707.0,0.08629917]
[1725250423388,0.06065,57711.0,57707.0,0.08629917]
[1725250423571,0.060655,57706.0,57705.0,0.08629917]
[1725250423876,0.29975198,57706.0,57704.0,0.08629917]
[1725250424067,0.29975198,57706.0,57703.0,0.08629917]
[1725250424376,0.060656,57705.0,57701.0,0.08629917]
[1725250424580,0.1,57704.0,57701.0,0.08629917]
[1725250424771,0.19378077,57704.0,57701.0,0.08623773]
[1725250425471,0.19378077,57704.0,57702.0,0.51992]
[1725250425776,0.3608,57708.0,57703.0,0.19271196]
[1725250425981,0.3608,57708.0,57705.0,0.08620953]
[1725250426166,0.19470929,57707.0,57705.0,0.08620953]
[1725250426487,0.19470929,57707.0,57705.0,0.60608953]
[1725250426777,0.29470929,57707.0,57705.0,0.08620953]
[1725250427075,0.060657,57704.0,57701.0,0.08620953]
[1725250427277,0.1,57701.0,57700.0,0.21610953]
[1725250427468,0.1,57701.0,57700.0,0.1299]
[1725250427672,0.28762248,57701.0,57700.0,0.1299]
[1725250428882,0.18762248,57701.0,57700.0,0.1299]
[1725250429971,0.34828248,57701.0,57700.0,0.1299]
[1725250431176,0.34868248,57701.0,57700.0,0.1299]
[1725250432873,0.060661,57700.0,57699.0,0.00025992]
[1725250433080,0.061061,57700.0,57699.0,0.00025992]
[1725250433375,0.24979935,57700.0,57699.0,0.06931446]